Cogmind - Beta 11.1 *** ADVENTURER MODE // 2022.10.29 @ 14:41:44 Player: intrepid Result: Destroyed by G-47 Trooper with Particle Gun Performance ------------- Evolutions (2) 1000 Regions Visited (4) 800 Robots Destroyed (34) 170 Value Destroyed (892) 892 Prototype IDs (0) 0 Alien Tech Used (0) 0 Bonus (0) 0 TOTAL SCORE: 2862 Bonus ------- None Cogmind --------- Core Integrity 0/550 Matter 227/300 Energy 97/100 System Corruption 0% Temperature Cool (9) Movement Core (150) Ox2 Location -8/Materials Parts ------- > --- POWER (3) -------- (None) > --- PROPULSION (3) --- (None) > --- UTILITY (3) ------ Field Recycling Unit > --- WEAPON (2) ------- (None) > --- INVENTORY (5) ---- Medium Matter Pod (10) Peak State ------------ > --- POWER ------------ Light Ion Engine Reinforced Ion Engine Deuterium Engine > --- PROPULSION ------- Wheel Compact Wheel > --- UTILITY ---------- Heat Sink Small Storage Unit Medium Battery > --- WEAPON ----------- Improved Light Cannon Mini Grenade Launcher > --- INVENTORY -------- Deuterium Engine Light Treads Medium Matter Pod Light Armor Plating Field Recycling Unit Light Assault Rifle Mining Laser [Rating: 16] Favorites ----------- Power Reinforced Ion Engine Engine Reinforced Ion Engine Propulsion Compact Wheel Treads Light Treads Wheel Compact Wheel Flight Unit VTOL Module Utility Small Storage Unit Device Heat Sink Storage Small Storage Unit Protection Light Armor Plating Weapon Improved Light Cannon Energy Gun Small Laser Energy Cannon Light EM Pulse Cannon Ballistic Gun Light Assault Rifle Ballistic Cannon Improved Light Cannon Launcher Mini Grenade Launcher Special Weapon Mining Laser Build | -11 -10 -10 -9 -8 ------- Run | Scr Mat Min Mat Mat Slots Evolved 4 | . . . 2 2 Power 2 | . . . 2 . Propulsion 1 | . . . . 1 Utility 1 | . . . . 1 Weapon . | . . . . . Parts Attached 30 | 1 7 1 11 10 Power 7 | . 1 . 3 3 Engine 7 | . 1 . 3 3 Core . | . . . . . Reactor . | . . . . . Propulsion 8 | . 2 . 4 2 Treads 2 | . . . 1 1 Leg . | . . . . . Wheel 5 | . 2 . 3 . Hover . | . . . . . Flight 1 | . . . . 1 Utility 7 | 1 2 . 1 3 Device 3 | . 1 . 1 1 Storage 3 | 1 1 . . 1 Processor . | . . . . . Hackware . | . . . . . Protection 1 | . . . . 1 Artifact . | . . . . . Weapon 8 | . 2 1 3 2 Energy Gun 1 | . 1 . . . Energy Cannon 1 | . . . 1 . Ballistic Gun 2 | . 1 . . 1 Ballistic Cannon 2 | . . 1 1 . Launcher 1 | . . . 1 . Special Weapon 1 | . . . . 1 Impact Weapon . | . . . . . Slashing Weapon . | . . . . . Piercing Weapon . | . . . . . Special Melee Weapon . | . . . . . Unidentified Prototypes . | . . . . . Parts Lost 20 | . . 1 3 16 Power 5 | . . . 1 4 Propulsion 6 | . . 1 1 4 Utility 4 | . . . . 4 Weapon 5 | . . . 1 4 Highest Loss Streak 15 | . . 1 3 15 To Critical Strikes . | . . . . . Average Slot Usage (%) 90 | . 92 99 92 69 Engine 21 | . 13 14 28 19 Treads 3 | . . . 8 . Wheel 17 | . 27 27 11 13 Device 2 | . 12 . . 8 Storage 21 | . 15 28 22 13 Energy Gun 1 | . 13 1 . . Energy Cannon 2 | . . . 6 . Ballistic Gun 6 | . 8 14 3 1 Ballistic Cannon 9 | . . 12 11 5 Launcher 1 | . . . 1 6 Naked Turns . | . . . . . Heaviest Build 37 | 5 14 16 37 35 Greatest Support 26 | 3 26 26 26 26 Greatest Overweight (x) 8 | 1 1 . 3 8 Average Overweight (x) . | . . . 1 1 Largest Inventory Capacity 8 | 8 8 8 8 8 Average Capacity 7 | 6 8 8 8 7 Most Carried 8 | 6 6 8 8 8 Average Carried 6 | 3 3 6 7 5 Final Capacity 8 | 8 8 8 8 5 Final Carried 8 | 6 4 8 8 1 Class Distribution -------------------- 94% | Mutant 5% | Scavenger-Mutant Dominant Class ---------------- Mutant | -10/Materials Mutant | -10/Mines Mutant | -9/Materials Mutant | -8/Materials Resources | -11 -10 -10 -9 -8 ----------- Run | Scr Mat Min Mat Mat Matter Collected 747 | 210 65 119 301 52 Remotely . | . . . . . Salvage Created 905 | . 34 284 439 148 Parts 69 | . 8 14 34 13 Haulers Intercepted . | . . . . . Recyclers Shooed 1 | . . . 1 . Parts Field Recycled . | . . . . . Retrieved Matter . | . . . . . Parts Self-Destructed . | . . . . . Prevented . | . . . . . Kills | -11 -10 -10 -9 -8 ------- Run | Scr Mat Min Mat Mat Combat Hostiles Destroyed 30 | . 3 8 15 4 Guns 10 | . 3 5 1 1 Cannons 17 | . . 3 12 2 AOE 2 | . . . 1 1 Classes Destroyed 6 | . 1 1 4 . Worker 1 | . . . 1 . Watcher 3 | . . . 3 . Swarmer 11 | . 3 3 5 . Grunt 15 | . . 5 8 2 Brawler 1 | . . . 1 . Sentry 3 | . . . 1 2 Best Kill Streak 7 | . 3 5 7 1 Combat Bots Only 5 | . 3 5 3 1 Max Kills in Single Turn 2 | . 2 1 2 1 Gunslinging 1 | . 1 . . . Exploded 1 | . . . 1 1 Melee . | . . . . . Uniques/NPCs Destroyed . | . . . . . Combat | -11 -10 -10 -9 -8 -------- Run | Scr Mat Min Mat Mat Damage Taken 2221 | . 31 247 515 1428 Core 665 | . 17 46 51 551 Absorbed by Shields . | . . . . . Core Remaining (%) 87 | 100 . 74 87 . Volleys Fired 117 | . 10 27 44 36 Largest 2 | . 2 2 2 1 Hottest 100 | . 60 60 95 100 Shots Fired 180 | . 19 46 79 36 Gun 87 | . 19 28 13 27 Cannon 89 | . . 18 63 8 Launcher 3 | . . . 3 . Special 1 | . . . . 1 Kinetic 147 | . 10 45 57 35 Thermal 11 | . 9 1 . 1 Explosive 3 | . . . 3 . Electromagnetic 19 | . . . 19 . Robot Hit Streak 29 | . 5 26 29 17 Robot Miss Streak 3 | . 1 3 3 3 Penetration Max . | . . . . . Secondary Targets 1 | . 1 . . . Max Gunslinging Chain 1 | . 1 . . . Shots Hit Robots 120 | . 13 30 47 30 Core Hits 53 | . 4 13 24 12 Critical Kills . | . . . . . Critical Parts Destroyed 1 | . . . . 1 Critical Strikes 5 | . . 2 2 1 Destroy 1 | . . . . 1 Blast 4 | . . 2 2 . Melee Attacks . | . . . . . Impact . | . . . . . Slashing . | . . . . . Piercing . | . . . . . Sneak Attacks . | . . . . . Combat Hostiles . | . . . . . Follow-up Attacks . | . . . . . Damage Inflicted 1752 | . 127 363 961 301 Guns 543 | . 127 130 85 201 Cannons 1100 | . . 233 791 76 Explosions 85 | . . . 85 . Melee . | . . . . . Ramming . | . . . . . Kinetic 1297 | . 58 363 599 277 Thermal 122 | . 69 . 29 24 Explosive 56 | . . . 56 . Electromagnetic 277 | . . . 277 . Impact . | . . . . . Slashing . | . . . . . Piercing . | . . . . . Highest Corruption . | . . . . . Average Corruption . | . . . . . Corruption Purged . | . . . . . Corruption Blocked . | . . . . . Overload Shots . | . . . . . Overflow Damage 28 | . . 28 . . Projectiles 28 | . . 28 . . Explosions . | . . . . . Melee . | . . . . . Knockbacks 4 | . . 2 1 1 Impact . | . . . . . Kinetic 4 | . . 2 1 1 Secondary . | . . . . . Self-Inflicted Damage . | . . . . . Shots . | . . . . . Rammed . | . . . . . Targets Rammed . | . . . . . Kicked . | . . . . . Crushed . | . . . . . Highest Temperature 486 | . 20 103 486 54 Average Temperature 118 | . 15 40 158 19 Received Heat Transfer 1416 | . . 141 228 1047 Effects 10 | . . . 10 . Shutdowns 2 | . . . 2 . Energy Bleed 1 | . . . 1 . Interference 1 | . . . 1 . Matter Decay 1 | . . . 1 . Short Circuit 1 | . . . 1 . Damage (minor) 2 | . . . 2 . Damage (major) 2 | . . . 2 . Siege Activations . | . . . . . Robots Corrupted 1 | . . . 1 . Combat Hostiles 1 | . . . 1 . Parts Fried 1 | . . . 1 . Impact Corruptions . | . . . . . Robots Melted . | . . . . . Combat Hostiles . | . . . . . Parts Melted . | . . . . . Heat Transferred 250 | . 150 . 50 50 Parts Sabotaged . | . . . . . Parts Stolen . | . . . . . Parts Stripped . | . . . . . Power Chain Reactions 1 | . . . 1 . Missiles Intercepted . | . . . . . Alert | -11 -10 -10 -9 -8 ------- Run | Scr Mat Min Mat Mat Peak Influence 294 | . 130 197 294 231 Initial 105 | . . 42 29 105 Average 105 | . 60 135 88 156 Maximum Alert Level 1 | . . . 1 1 Low Security (%) 93 | 100 100 100 91 82 Level 1 6 | . . . 8 17 Level 2 . | . . . . . Level 3 . | . . . . . Level 4 . | . . . . . Level 5 . | . . . . . High Security . | . . . . . Max Security . | . . . . . Squads Dispatched 3 | . . . 2 1 Investigation 1 | . . . 1 . Extermination . | . . . . . Reinforcement 2 | . . . 1 1 Assault . | . . . . . Garrison . | . . . . . Intercept . | . . . . . Searches Triggered . | . . . . . Construction Impeded . | . . . . . Haulers Reinforced . | . . . . . Active Scanning Responses . | . . . . . Cargo Convoy Interrupts . | . . . . . Stealth | -11 -10 -10 -9 -8 --------- Run | Scr Mat Min Mat Mat Distress Signals 2 | . . . 1 1 Communications Jammed . | . . . . . Distress Signals . | . . . . . Times Spotted 61 | . 7 10 25 19 Peak Tracking Total 9 | . 4 3 4 9 Tactical Retreats 3 | . . 2 . 1 Traps | -11 -10 -10 -9 -8 ------- Run | Scr Mat Min Mat Mat Traps Triggered 1 | . . . 1 . Indirectly . | . . . . . Trap Hack Attempts . | . . . . . Triggered . | . . . . . Disarmed . | . . . . . Reprogrammed . | . . . . . Reused . | . . . . . Traps Extracted . | . . . . . Installed . | . . . . . Triggered . | . . . . . Most Traps Carried 4 | . . 4 4 . Machines | -11 -10 -10 -9 -8 ---------- Run | Scr Mat Min Mat Mat Machines Disabled . | . . . . . Max in Single Turn . | . . . . . Machines Sabotaged . | . . . . . Garrisons Compromised . | . . . . . Overloaded Fab Kills . | . . . . . Hacking | -11 -10 -10 -9 -8 --------- Run | Scr Mat Min Mat Mat Machines Accessed 1 | . 1 . . . Terminals . | . . . . . Fabricators . | . . . . . Repair Stations . | . . . . . Recycling Units 1 | . 1 . . . Scanalyzers . | . . . . . Garrison Access . | . . . . . Total Hacks 2 | . 2 . . . Successful 2 | . 2 . . . Failed . | . . . . . Catastrophic . | . . . . . Database Lockouts . | . . . . . Manual 1 | . . . 1 . Terminals . | . . . . . Fabricators . | . . . . . Repair Stations . | . . . . . Recycling Units 2 | . 2 . . . Scanalyzers . | . . . . . Garrison Access . | . . . . . Terminal Hacks . | . . . . . Fabricator Hacks . | . . . . . Repair Station Hacks . | . . . . . Recycling Unit Hacks 2 | . 2 . . . Report Inventory 1 | . 1 . . . Retrieve Components 1 | . 1 . . . Scanalyzer . | . . . . . Garrison Access Hacks . | . . . . . Unauthorized Hacks . | . . . . . Terminals . | . . . . . Fabricators . | . . . . . Repair Stations . | . . . . . Recycling Units . | . . . . . Scanalyzers . | . . . . . Garrison Access . | . . . . . Data Cores Recovered . | . . . . . Used . | . . . . . Hacking Detections 1 | . . . 1 . Full Trace Events . | . . . . . Feedback Events . | . . . . . Feedback Blocked . | . . . . . Robot Schematics Acquired . | . . . . . Robots Built . | . . . . . Authchips . | . . . . . Time . | . . . . . Total Robot Build Rating . | . . . . . Part Schematics Acquired . | . . . . . Parts Built . | . . . . . Authchips . | . . . . . Time . | . . . . . Total Part Build Rating . | . . . . . Parts Repaired . | . . . . . Time . | . . . . . Parts Recycled . | . . . . . Recycled Matter . | . . . . . Retrieved Matter . | . . . . . Retrieved Components 2 | . 2 . . . Parts Scanalyzed . | . . . . . Part Schematics Acquired . | . . . . . Parts Damaged . | . . . . . Bothacking | -11 -10 -10 -9 -8 ------------ Run | Scr Mat Min Mat Mat Used RIF Installer . | . . . . . Robots Hacked . | . . . . . Non-combat . | . . . . . Combat . | . . . . . Robot Hacks Applied . | . . . . . Relay Couplers Released . | . . . . . Fabnet Peak Effective % . | . . . . . Robots Rewired . | . . . . . Allies Hacked . | . . . . . Hacks Repelled . | . . . . . Allies | -11 -10 -10 -9 -8 -------- Run | Scr Mat Min Mat Mat Total Allies 1 | . . 1 . . Largest Group 1 | . . 1 . . Highest-Rated Group 31 | . . 31 . . Highest-Rated Ally 31 | . . 31 . . Total Orders . | . . . . . Ally Attacks . | . . . . . Total Damage . | . . . . . Kills . | . . . . . Allies Corrupted . | . . . . . Allies Melted . | . . . . . Intel | -11 -10 -10 -9 -8 ------- Run | Scr Mat Min Mat Mat Robot Analysis Total . | . . . . . Derelict Logs Recovered 1 | . . 1 . . Drone Launches . | . . . . . Drone Recoveries . | . . . . . Exploration | -11 -10 -10 -9 -8 ------------- Run | Scr Mat Min Mat Mat Turns Passed 2175 | 46 252 516 994 367 Spaces Moved 1468 | 59 237 489 444 239 Core 96 | 59 2 . . 35 Treads 280 | . . . 275 5 Legs . | . . . . . Wheels 1086 | . 235 489 169 193 Hover . | . . . . . Flight 6 | . . . . 6 Fastest Speed 50 | 50 90 90 95 90 Average Speed 124 | 66 90 90 191 119 Slowest Speed 450 | 100 100 100 240 450 Overloaded Moves . | . . . . . Propulsion Burnouts . | . . . . . Robots Hopped . | . . . . . Cave-ins Triggered . | . . . . . Exploration Rate (%) 32 | 4 33 73 34 18 Regions Visited 4 Branch Regions 1 Pre-discovered Areas . | . . . . . Known Exits Taken . | . . . . . Unknown Exits Taken 4 | 1 1 1 1 . Scrap Searched . | . . . . . Spaces Dug . | . . . . . Terrain Destroyed 19 | . . . 18 1 Melee . | . . . . . Projectile 3 | . . . 2 1 AOE 16 | . . . 16 . Terrain Rammed . | . . . . . Walls Destroyed . | . . . . . Machines Disabled . | . . . . . Actions | -11 -10 -10 -9 -8 --------- Run | Scr Mat Min Mat Mat Total 1646 | 65 257 522 514 288 Wait . | . . . . . Move 1464 | 58 236 488 443 239 Hop . | . . . . . Pick Up 25 | 6 4 5 8 2 Fast Attach 5 | 1 . . 3 1 Attach 18 | . 6 . 3 9 Detach . | . . . . . Swap 7 | . 1 1 5 . Drop 10 | . . 1 8 1 Fire 117 | . 10 27 44 36 Melee . | . . . . . Ram . | . . . . . Kick . | . . . . . Crush . | . . . . . Escape Stasis . | . . . . . Rewire . | . . . . . Trap . | . . . . . Miscellaneous . | . . . . . Route ------- -11/Scrapyard -10/Materials -10/Mines -9/Materials -8/Materials History --------- Turn | Location | Event 13 | -11/Scrapyard | Discovered new exit (range 16) 47 | -11/Scrapyard | Entered Materials 190 | -10/Materials | Discovered new exit (range 13) 299 | -10/Materials | Entered Mines 300 | -10/Mines | Build established: Mutant 456 | -10/Mines | Found a hidden stash of uninstalled traps 477 | -10/Mines | Received a Mining Laser from a helpful Derelict 670 | -10/Mines | Learned Materials machine intel 770 | -10/Mines | Discovered new exit (range 6) 815 | -10/Mines | Entered Materials 815 | -9/Materials | Evolved 2 slots: Power x2 816 | -9/Materials | Loaded intel: 65 machine locations 1727 | -9/Materials | Discovered new exit (range 11) 1743 | -9/Materials | Lost 3 parts (1p1n1w) 1809 | -9/Materials | Entered another Materials area 1809 | -8/Materials | Evolved 2 slots: Propulsion x1, Utility x1 2123 | -8/Materials | Core integrity fell below 50% 2158 | -8/Materials | Core integrity fell below 20% 2176 | -8/Materials | Destroyed by G-47 Trooper with Particle Gun Last Messages --------------- Y-45 Defender destroyed. G-47 Trooper destroyed. Scanalyzer disabled. K-01 Serf destroyed. R-06 Scavenger collects Heat Sink. Deuterium Engine destroyed. R-06 Scavenger collects Lgt. Armor Plating. U-05 Engineer lays Concrete. U-05 Engineer builds a Wall. U-05 Engineer builds a Door. Acquired VTOL Module. U-05 Engineer lays Concrete. U-05 Engineer builds a Wall. U-05 Engineer lays Concrete. U-05 Engineer builds a Wall. VTOL Module destroyed. U-05 Engineer lays Concrete. U-05 Engineer builds a Wall. W-25 Informer distress signal alerts nearby ally. K-01 Serf collects debris. Map ----- +----------------------------------------------------+ | ?????????????????????????????????????????????????? | | ?????????????????????????????????????????????????? | | ?????????????????????????????????????????????????? | | ?????????????????????????????????????????????????? | | ?????????????????????????????????????????????????? | | ?????????????????????????????? ??????????????????? | | ?????????????????????????????? ??????????????????? | | ?????????????????????????????? ??????????????????? | | ?????????????????????????????? ??????????????????? | | ?????????????????????????????? ??????????????????? | | ?????????????????????????????? ??????????????????? | | ?????????????????????????????? ??????????????????? | | ?????????????????????????????# #?????????????????? | | ?????????????????????????????# #?????????????????? | | ?????????????????????????????# #?????????????????? | | ?????????????????????????????# #?????????????????? | | ?????????????????????????????# #?????????????????? | | ?????????????????????????????# #?????????????????? | | ?????????????????????????????# ####??????????????? | | ?????????????????????????????# #????##????????? | | ???????????????????########### ##### ####?????? | | ???????????????????# # / #?????? | | ???????????????????# # ## "" #?????? | | ???????????????????# # ## ""#?????? | | ???????????????????# # ## "#?????? | | ???????????????????# @ # "# #?????? | | ???????????????????# g# ## #?????? | | ???????????????????# g/ #" ] #?????? | | ???????????????????# # +! #?????? | | ???????????????????# # ## % #?????? | | ???????????????????# # *# ! #?????? | | ???????????????????# # ;= !*% ####### | | ???????????????????# # ######""## | | ???????????????????# w g# % ![ | | ???????????????????# + ! % | | ???????????????????# # %! = [*% | | ???????????????????########### =% | | ???????????????????########### ########## | | ???????????????????# # #????????### ## | | ???????????????????# """ """ + #??????????? #? | | ?????????????####### """ """ #### #??????????? #? | | ? ????????# # """ """ #??# #??????????? #? | | ?????# # #??# #??????????? #? | | #### T / = #??# #??????????? ? | | # #??# #??????????? ? | | # = #??# #??????????? | | ############### ############??# #???????????? # | | ??????????????# #?????????????? #????????????### | | ??????????????# #?????????????? #??????????????? | | ??????????????+ #??????????????/???????????????? | +----------------------------------------------------+ Best States ------------- Heat Dissipation 41 Energy Generation 26 Energy Capacity 615 Matter Stores 300 Matter Capacity 300 Sight Range 16 Robot Scan Range 14 Terrain Scan Density 10 Armor Coverage 150 Resistance: KI 20 Resistance: TH 20 Resistance: EX 20 Resistance: EM 20 Resistance: I 20 Resistance: S 20 Resistance: P 20 Evasion (%) 50 Recoil Reduction 1 Offensive Hacking 10 Item Schematics ----------------- None Robot Schematics ------------------ None Fabricated ------------ Nothing Alien Tech Used ----------------- None Achievements -------------- Power Corrupts Challenges ------------ None Game ------ Seed FluxReflectiveTerrabomb Manual? 0 Play Time 00:35:43 Cumulative 3.1 hours Start 2022.10.29 @ 13:17:47 End 2022.10.29 @ 14:41:44 Sessions 1 Manual Loads 0 Difficulty Adventurer Special Mode None Game No. 4 Rogue 0 Adventurer 4 Explorer 0 Win Type - Total 0 Types 0/0/0/0/0/0/0/0/0 Lore% 3 Gallery% 4 Achievement% 4 Wizard Run 0 Options --------- ASCII 0 Keyboard 0 Movement Mouse Keybinds 0 Fullscreen 1 Font 18/SmallcapsGlow Map View 76x50 Tactical HUD 0 Map Filters NONE Filters NONE Steam 1 RUN: 4dc1d137-3e35-46a1-812a-9242362b336f